Workbook

Sheet 총괄
A1: 2027년도 과수화훼분야 도비지원사업 수요조사 결과
A2: □ 총 괄
A3: 사 업 명 | C3: 지원기준 (천원) | E3: 사업신청 | G3: 사 업 비(천원) | K3: 비고
E4: 신청량 | F4: 단위 | G4: 계 | H4: 도비 | I4: 시군비 | J4: 자부담
A5: 읍면명 | B5: 총 계 | G5: =SUM(G6,G7,G8,G16,G22,G23,G24,G25) -> 266,660 | H5: =SUM(H6,H7,H8,H16,H22,H23,H24,H25) -> 39,999 | I5: 93,331 | J5: 133,330
B6: ①경북형 평면 사과원 조성(기반조성) | C6: 120,000 | D6: ha | E6: =경북형평면사과원조성!E6 -> 1.8 | F6: ha | G6: =경북형평면사과원조성!H6 -> 216,000 | H6: =경북형평면사과원조성!I6 -> 32,400 | I6: =경북형평면사과원조성!J6 -> 75,600 | J6: =경북형평면사과원조성!K6 -> 108,000
B7: ②농가형 저온저장고 설치지원 | C7: 3,300 | D7: 3.3㎡ | E7: =농가형저온저장고!F6 -> 0 | F7: ㎡ | G7: =농가형저온저장고!J6 -> 50,000 | H7: =농가형저온저장고!K6 -> 7,500 | I7: =농가형저온저장고!L6 -> 17,500 | J7: =농가형저온저장고!M6 -> 25,000
B8: ③과수생력화 장비지원 | E8: =SUM(E9:E15) -> 0 | F8: 대 | G8: =SUM(G9:G15) -> 0 | H8: =SUM(H9:H15) -> 0 | I8: =SUM(I9:I15) -> 0 | J8: =SUM(J9:J15) -> 0
B9: - 동력제초기(승용,원격조종형) | C9: 9,000 | D9: 대 | E9: =과수생력화장비!G7 -> 0 | F9: 대 | G9: =과수생력화장비!H7 -> 0 | H9: =과수생력화장비!I7 -> 0 | I9: =과수생력화장비!J7 -> 0 | J9: =과수생력화장비!K7 -> 0
B10: - 농용고소작업차 | C10: 9,000 | D10: 대 | E10: =과수생력화장비!G11 -> 0 | F10: 대 | G10: =과수생력화장비!H11 -> 0 | H10: =과수생력화장비!I11 -> 0 | I10: =과수생력화장비!J11 -> 0 | J10: =과수생력화장비!K11 -> 0
B11: - 주행형동력분무기 | C11: 6,000 | D11: 대 | E11: =과수생력화장비!G15 -> 0 | F11: 대 | G11: =과수생력화장비!H15 -> 0 | H11: =과수생력화장비!I15 -> 0 | I11: =과수생력화장비!J15 -> 0 | J11: =과수생력화장비!K15 -> 0
B12: - 과수전용방제기(보행SS기) | C12: 6,000 | D12: 대 | E12: =과수생력화장비!G19 -> 0 | F12: 대 | G12: =과수생력화장비!H19 -> 0 | H12: =과수생력화장비!I19 -> 0 | I12: =과수생력화장비!J19 -> 0 | J12: =과수생력화장비!K19 -> 0
B13: - 과수전용방제기(승용SS기) | C13: 20,000 | D13: 대 | E13: =과수생력화장비!G23 -> 0 | F13: 대 | G13: =과수생력화장비!H23 -> 0 | H13: =과수생력화장비!I23 -> 0 | I13: =과수생력화장비!J23 -> 0 | J13: =과수생력화장비!K23 -> 0
B14: - 전동무인방제기 | C14: 20,000 | D14: 대 | E14: =과수생력화장비!G27 -> 0 | F14: 대 | G14: =과수생력화장비!H27 -> 0 | H14: =과수생력화장비!I27 -> 0 | I14: =과수생력화장비!J27 -> 0 | J14: =과수생력화장비!K27 -> 0
B15: - 소형트랙터 | C15: 20,000 | D15: 대 | E15: =과수생력화장비!G31 -> 0 | F15: 대 | G15: =과수생력화장비!H31 -> 0 | H15: =과수생력화장비!I31 -> 0 | I15: =과수생력화장비!J31 -> 0 | J15: =과수생력화장비!K31 -> 0
B16: ④과실생산비절감 및 품질제고 지원 | E16: =SUM(E17:E21) -> 0 | F16: 대 | G16: =SUM(G17:G21) -> 0 | H16: =SUM(H17:H21) -> 0 | I16: =SUM(I17:I21) -> 0 | J16: =SUM(J17:J21) -> 0
B17: - 친환경 사과적화제 | C17: 280 | D17: ha | E17: ='과실생산비절감 및 품질제고'!G7 -> 0 | F17: ha | G17: ='과실생산비절감 및 품질제고'!I7 -> 0 | H17: ='과실생산비절감 및 품질제고'!J7 -> 0 | I17: ='과실생산비절감 및 품질제고'!K7 -> 0 | J17: ='과실생산비절감 및 품질제고'!L7 -> 0
B18: - 과실장기저장제(1-MCP) | C18: 33 | D18: ㎡ | E18: ='과실생산비절감 및 품질제고'!G11 -> 0 | F18: ㎡ | G18: ='과실생산비절감 및 품질제고'!I11 -> 0 | H18: ='과실생산비절감 및 품질제고'!J11 -> 0 | I18: ='과실생산비절감 및 품질제고'!K11 -> 0 | J18: ='과실생산비절감 및 품질제고'!L11 -> 0
B19: - 휴대용비파괴당도측정기 | C19: 3,000 | D19: 대 | E19: ='과실생산비절감 및 품질제고'!G15 -> 0 | F19: 대 | G19: ='과실생산비절감 및 품질제고'!I15 -> 0 | H19: ='과실생산비절감 및 품질제고'!J15 -> 0 | I19: ='과실생산비절감 및 품질제고'!K15 -> 0 | J19: ='과실생산비절감 및 품질제고'!L15 -> 0
B20: - 농업용수처리기 | C20: 7,000 | D20: 대 | E20: ='과실생산비절감 및 품질제고'!G19 -> 0 | F20: 대 | G20: ='과실생산비절감 및 품질제고'!I19 -> 0 | H20: ='과실생산비절감 및 품질제고'!J19 -> 0 | I20: ='과실생산비절감 및 품질제고'!K19 -> 0 | J20: ='과실생산비절감 및 품질제고'!L19 -> 0
B21: - 신선도유지기 | C21: 2,500 | D21: 대 | E21: ='과실생산비절감 및 품질제고'!G23 -> 0 | F21: 대 | G21: ='과실생산비절감 및 품질제고'!I23 -> 0 | H21: ='과실생산비절감 및 품질제고'!J23 -> 0 | I21: ='과실생산비절감 및 품질제고'!K23 -> 0 | J21: ='과실생산비절감 및 품질제고'!L23 -> 0
B22: ⑤대체과수 품목육성 지원 | E22: =대체과수품목육성지원!H6 -> 0 | F22: ㎡ | G22: =대체과수품목육성지원!I6 -> 0 | H22: =대체과수품목육성지원!J6 -> 0 | I22: =대체과수품목육성지원!K6 -> 0 | J22: =대체과수품목육성지원!L6 -> 0
B23: ⑥과수분야 저온피해경감제 지원 | C23: 330 | D23: ha | E23: ='과수분야 저온피해경감제 지원'!E6 -> 2.0 | F23: ha | G23: ='과수분야 저온피해경감제 지원'!J6 -> 660 | H23: ='과수분야 저온피해경감제 지원'!K6 -> 99 | I23: ='과수분야 저온피해경감제 지원'!L6 -> 231 | J23: ='과수분야 저온피해경감제 지원'!M6 -> 330
B24: ⑦화훼생산시설 경쟁력제고 지원 | E24: =화훼경쟁력제고!H6 -> 0 | F24: 개소 | G24: =화훼경쟁력제고!J6 -> 0 | H24: =화훼경쟁력제고!K6 -> 0 | I24: =화훼경쟁력제고!L6 -> 0 | J24: =화훼경쟁력제고!M6 -> 0
B25: *신규사업 | E25: =신규사업!C5 -> 0 | G25: =신규사업!F5 -> 0 | H25: =신규사업!G5 -> 0 | I25: =신규사업!H5 -> 0 | J25: =신규사업!I5 -> 0

Sheet 경북형평면사과원조성
A1: 2027년도 과수화훼분야 도비지원사업 수요조사 결과
A2: □ 사업명 : 경북형 평면 사과원 조성(기반조성)
L3: (단위 : 천원)
A4: 읍면명 | B4: 신청자 | D4: 대표 품종 | E4: 사업량(재배면적) | H4: 사 업 비 | L4: 비고
B5: 성명 | C5: 거주지 | E5: 계 (ha) | F5: 기존과원갱신 (㎡) | G5: 신규조성 (㎡) | H5: 계 (100%) | I5: 도비 (15%) | J5: 시군비 (35%) | K5: 자부담 (50%)
A6: 총계 | E6: =SUM(E7:E10) -> 1.80 | F6: =SUM(F7:F10) -> 6,000 | G6: =SUM(G7:G10) -> 12,000 | H6: =SUM(I6:K6) -> 216,000 | I6: =SUM(I7:I10) -> 32,400 | J6: =SUM(J7:J10) -> 75,600 | K6: =SUM(K7:K10) -> 108,000
A7: 예시) | B7: 홍길동 | C7: ㅇㅇ시 ㅇㅇ면 ㅇㅇ리 | D7: 부사 | E7: =SUM(F7:G7)/10000 -> 0.50 | F7: 3,000 | G7: 2,000 | H7: =SUM(I7:K7) -> 60,000 | I7: =E7*120000*0.15 -> 9,000 | J7: =E7*120000*0.35 -> 21,000 | K7: =E7*120000*0.5 -> 30,000
B8: 김길동 | C8: ㅇㅇ시 ㅇㅇ면 ㅇㅇ리 | E8: =SUM(F8:G8)/10000 -> 0.80 | F8: 3,000 | G8: 5,000 | H8: =SUM(I8:K8) -> 96,000 | I8: =E8*120000*0.15 -> 14,400 | J8: =E8*120000*0.35 -> 33,600 | K8: =E8*120000*0.5 -> 48,000
B9: 박길동 | C9: ㅇㅇ시 ㅇㅇ면 ㅇㅇ리 | E9: =SUM(F9:G9)/10000 -> 0.50 | F9: 0 | G9: 5,000 | H9: =SUM(I9:K9) -> 60,000 | I9: =E9*120000*0.15 -> 9,000 | J9: =E9*120000*0.35 -> 21,000 | K9: =E9*120000*0.5 -> 30,000
E10: =SUM(F10:G10)/10000 -> 0.00 | H10: =SUM(I10:K10) -> 0 | I10: =E10*120000*0.15 -> 0 | J10: =E10*120000*0.35 -> 0 | K10: =E10*120000*0.5 -> 0
A12: * 노란색 셀만 입력 * 지원한도 : 120,000천원/ha * 반드시 읍면에서 전체 검토 후, 적정 농가 및 사업기준에 적합하도록 기재

Sheet 농가형저온저장고
A1: 2027년도 과수화훼분야 도비지원사업 수요조사 결과
A2: □ 사업명 : 농가형 저온저장고 설치 지원사업
N3: (단위:천원)
A4: 읍면명 | B4: 신청자 | D4: 주요작목 | E4: 재배면적 (㎡) | F4: 사업내용 | J4: 사 업 비 | N4: 비고
B5: 성명 | C5: 거주지 | F5: 사업위치 | G5: 사업량 (㎡) | H5: 개소수 | I5: 사업유형 | J5: 계 (100%) | K5: 도비 (15%) | L5: 시군비 (35%) | M5: 자부담 (50%)
A6: 총계 | G6: =SUM(G7:G10) -> 66 | H6: =SUM(H7:H10) -> 2 | J6: =SUM(K6:M6) -> 50,000 | K6: =SUM(K7:K10) -> 7,500 | L6: =SUM(L7:L10) -> 17,500 | M6: =SUM(M7:M10) -> 25,000
A7: 예시) | B7: 홍길동 | C7: ㅇㅇ시 ㅇㅇ면 ㅇㅇ리 | D7: 사과 | E7: 3,500 | F7: ㅇㅇ시 ㅇㅇ면 ㅇㅇ리 | G7: 33 | H7: 1 | I7: 신규설치 | J7: =3300/3.3*G7 -> 33,000 | K7: =J7*15% -> 4,950 | L7: =J7*35% -> 11,550 | M7: =J7*50% -> 16,500
B8: 김길동 | C8: ㅇㅇ시 ㅇㅇ면 ㅇㅇ리 | D8: 포도 | E8: 3,450 | F8: ㅇㅇ시 ㅇㅇ면 ㅇㅇ리 | G8: 33 | H8: 1 | I8: 개보수 | J8: =1700/3.3*G8 -> 17,000 | K8: =J8*15% -> 2,550 | L8: =J8*35% -> 5,950 | M8: =J8*50% -> 8,500
J9: =3300/3.3*G9 -> 0
J10: =3300/3.3*G10 -> 0
A12: * 노란색 셀만 입력 * 지원한도 : (신규설치) 3,300천원/3.3㎡ 이내, (개보수) 1,700천원/3.3㎡ 이내 * 반드시 읍면에서 전체 검토 후, 적정 농가 및 사업기준에 적합하도록 기재

Sheet 과수생력화장비
A1: 2027년도 과수화훼분야 도비지원사업 수요조사 결과
A2: □ 사업명 : 과수생력화장비 지원사업
L3: (단위:천원)
A4: 읍면명 | B4: 신청자 | D4: 주요작목 | E4: 재배면적 (㎡) | F4: 사업신청 | H4: 사 업 비 | L4: 비고
B5: 성명 | C5: 거주지 | F5: 장비명 | G5: 사업량 (대) | H5: 계 (100%) | I5: 도비 (15%) | J5: 시군비 (35%) | K5: 자부담 (50%)
A6: 총계 | G6: =SUM(G7,G11,G15,G19,G23,G31) -> 0 | H6: =SUM(H7,H11,H15,H19,H23,H31) -> 0 | I6: =SUM(I7,I11,I15,I19,I23,I31) -> 0 | J6: =SUM(J7,J11,J15,J19,J23,J31) -> 0 | K6: =SUM(K7,K11,K15,K19,K23,K31) -> 0 | N6: 장비명 | O6: 지원단가(천원) | P6: 부담비율
B7: 소계 | F7: 동력제초기 | G7: =SUM(G8:G10) -> 0 | H7: =SUM(H8:H10) -> 0 | I7: =SUM(I8:I10) -> 0 | J7: =SUM(J8:J10) -> 0 | K7: =SUM(K8:K10) -> 0 | N7: 동력제초기 | O7: 9,000 | P7: 도비 15%, 시군비 35%, 자부담 50%
B8: 홍길동 | C8: ㅇㅇ시 ㅇㅇ면 ㅇㅇ리 | D8: 사과 | F8: 동력제초기 | H8: =SUM(I8:K8) -> 0 | I8: =IF(F8="동력제초기",G8*9000*0.15,IF(F8="농용고소작업차",G8*9000*0.15,IF(F8="주행형동력분무기",G8*6000*0.15,IF(F8="보행SS기",G8*6000*0.15,IF(F8="승용SS기",G8*20000*0.15,IF(F8="전동무인방제기",G8*20000*0.15,IF(F8="소형트랙터",G8*20000*0.15,0))))))) -> 0 | J8: =IF(F8="동력제초기",G8*9000*0.35,IF(F8="농용고소작업차",G8*9000*0.35,IF(F8="주행형동력분무기",G8*6000*0.35,IF(F8="보행SS기",G8*6000*0.35,IF(F8="승용SS기",G8*20000*0.35,IF(F8="전동무인방제기",G8*20000*0.35,IF(F8="소형트랙터",G8*20000*0.35))))))) -> 0 | K8: =IF(F8="동력제초기",G8*9000*0.5,IF(F8="농용고소작업차",G8*9000*0.5,IF(F8="주행형동력분무기",G8*6000*0.5,IF(F8="보행SS기",G8*6000*0.5,IF(F8="승용SS기",G8*20000*0.5,IF(F8="전동무인방제기",G8*20000*0.5,IF(F8="소형트랙터",G8*20000*0.5))))))) -> 0 | N8: 농용고소작업차 | O8: 9,000
B9: 김길동 | C9: ㅇㅇ시 ㅇㅇ면 ㅇㅇ리 | D9: 복숭아 | F9: 동력제초기 | H9: =SUM(I9:K9) -> 0 | I9: =IF(F9="동력제초기",G9*9000*0.15,IF(F9="농용고소작업차",G9*9000*0.15,IF(F9="주행형동력분무기",G9*6000*0.15,IF(F9="보행SS기",G9*6000*0.15,IF(F9="승용SS기",G9*20000*0.15,IF(F9="전동무인방제기",G9*20000*0.15,IF(F9="소형트랙터",G9*20000*0.15,0))))))) -> 0 | J9: =IF(F9="동력제초기",G9*9000*0.35,IF(F9="농용고소작업차",G9*9000*0.35,IF(F9="주행형동력분무기",G9*6000*0.35,IF(F9="보행SS기",G9*6000*0.35,IF(F9="승용SS기",G9*20000*0.35,IF(F9="전동무인방제기",G9*20000*0.35,IF(F9="소형트랙터",G9*20000*0.35))))))) -> 0 | K9: =IF(F9="동력제초기",G9*9000*0.5,IF(F9="농용고소작업차",G9*9000*0.5,IF(F9="주행형동력분무기",G9*6000*0.5,IF(F9="보행SS기",G9*6000*0.5,IF(F9="승용SS기",G9*20000*0.5,IF(F9="전동무인방제기",G9*20000*0.5,IF(F9="소형트랙터",G9*20000*0.5))))))) -> 0 | N9: 주행형동력분무기 | O9: 6,000
B10: 박길동 | C10: ㅇㅇ시 ㅇㅇ면 ㅇㅇ리 | D10: 자두 | F10: 동력제초기 | H10: =SUM(I10:K10) -> 0 | I10: =IF(F10="동력제초기",G10*9000*0.15,IF(F10="농용고소작업차",G10*9000*0.15,IF(F10="주행형동력분무기",G10*6000*0.15,IF(F10="보행SS기",G10*6000*0.15,IF(F10="승용SS기",G10*20000*0.15,IF(F10="전동무인방제기",G10*20000*0.15,IF(F10="소형트랙터",G10*20000*0.15,0))))))) -> 0 | J10: =IF(F10="동력제초기",G10*9000*0.35,IF(F10="농용고소작업차",G10*9000*0.35,IF(F10="주행형동력분무기",G10*6000*0.35,IF(F10="보행SS기",G10*6000*0.35,IF(F10="승용SS기",G10*20000*0.35,IF(F10="전동무인방제기",G10*20000*0.35,IF(F10="소형트랙터",G10*20000*0.35))))))) -> 0 | K10: =IF(F10="동력제초기",G10*9000*0.5,IF(F10="농용고소작업차",G10*9000*0.5,IF(F10="주행형동력분무기",G10*6000*0.5,IF(F10="보행SS기",G10*6000*0.5,IF(F10="승용SS기",G10*20000*0.5,IF(F10="전동무인방제기",G10*20000*0.5,IF(F10="소형트랙터",G10*20000*0.5))))))) -> 0 | N10: 보행ss기 | O10: 6,000
B11: 소계 | F11: 농용고소작업차 | G11: =SUM(G12:G14) -> 0 | H11: =SUM(H12:H14) -> 0 | I11: =SUM(I12:I14) -> 0 | J11: =SUM(J12:J14) -> 0 | K11: =SUM(K12:K14) -> 0 | N11: 승용ss기 | O11: 20,000
B12: 홍길동 | C12: ㅇㅇ시 ㅇㅇ면 ㅇㅇ리 | D12: 사과 | F12: 농용고소작업차 | H12: =SUM(I12:K12) -> 0 | I12: =IF(F12="동력제초기",G12*9000*0.15,IF(F12="농용고소작업차",G12*9000*0.15,IF(F12="주행형동력분무기",G12*6000*0.15,IF(F12="보행SS기",G12*6000*0.15,IF(F12="승용SS기",G12*20000*0.15,IF(F12="전동무인방제기",G12*20000*0.15,IF(F12="소형트랙터",G12*20000*0.15,0))))))) -> 0 | J12: =IF(F12="동력제초기",G12*9000*0.35,IF(F12="농용고소작업차",G12*9000*0.35,IF(F12="주행형동력분무기",G12*6000*0.35,IF(F12="보행SS기",G12*6000*0.35,IF(F12="승용SS기",G12*20000*0.35,IF(F12="전동무인방제기",G12*20000*0.35,IF(F12="소형트랙터",G12*20000*0.35))))))) -> 0 | K12: =IF(F12="동력제초기",G12*9000*0.5,IF(F12="농용고소작업차",G12*9000*0.5,IF(F12="주행형동력분무기",G12*6000*0.5,IF(F12="보행SS기",G12*6000*0.5,IF(F12="승용SS기",G12*20000*0.5,IF(F12="전동무인방제기",G12*20000*0.5,IF(F12="소형트랙터",G12*20000*0.5))))))) -> 0 | N12: 전동무인방제기 | O12: 20,000
B13: 김길동 | C13: ㅇㅇ시 ㅇㅇ면 ㅇㅇ리 | D13: 복숭아 | F13: 농용고소작업차 | H13: =SUM(I13:K13) -> 0 | I13: =IF(F13="동력제초기",G13*9000*0.15,IF(F13="농용고소작업차",G13*9000*0.15,IF(F13="주행형동력분무기",G13*6000*0.15,IF(F13="보행SS기",G13*6000*0.15,IF(F13="승용SS기",G13*20000*0.15,IF(F13="전동무인방제기",G13*20000*0.15,IF(F13="소형트랙터",G13*20000*0.15,0))))))) -> 0 | J13: =IF(F13="동력제초기",G13*9000*0.35,IF(F13="농용고소작업차",G13*9000*0.35,IF(F13="주행형동력분무기",G13*6000*0.35,IF(F13="보행SS기",G13*6000*0.35,IF(F13="승용SS기",G13*20000*0.35,IF(F13="전동무인방제기",G13*20000*0.35,IF(F13="소형트랙터",G13*20000*0.35))))))) -> 0 | K13: =IF(F13="동력제초기",G13*9000*0.5,IF(F13="농용고소작업차",G13*9000*0.5,IF(F13="주행형동력분무기",G13*6000*0.5,IF(F13="보행SS기",G13*6000*0.5,IF(F13="승용SS기",G13*20000*0.5,IF(F13="전동무인방제기",G13*20000*0.5,IF(F13="소형트랙터",G13*20000*0.5))))))) -> 0 | N13: 소형트랙터 | O13: 20,000
B14: 박길동 | C14: ㅇㅇ시 ㅇㅇ면 ㅇㅇ리 | D14: 자두 | F14: 농용고소작업차 | H14: =SUM(I14:K14) -> 0 | I14: =IF(F14="동력제초기",G14*9000*0.15,IF(F14="농용고소작업차",G14*9000*0.15,IF(F14="주행형동력분무기",G14*6000*0.15,IF(F14="보행SS기",G14*6000*0.15,IF(F14="승용SS기",G14*20000*0.15,IF(F14="전동무인방제기",G14*20000*0.15,IF(F14="소형트랙터",G14*20000*0.15,0))))))) -> 0 | J14: =IF(F14="동력제초기",G14*9000*0.35,IF(F14="농용고소작업차",G14*9000*0.35,IF(F14="주행형동력분무기",G14*6000*0.35,IF(F14="보행SS기",G14*6000*0.35,IF(F14="승용SS기",G14*20000*0.35,IF(F14="전동무인방제기",G14*20000*0.35,IF(F14="소형트랙터",G14*20000*0.35))))))) -> 0 | K14: =IF(F14="동력제초기",G14*9000*0.5,IF(F14="농용고소작업차",G14*9000*0.5,IF(F14="주행형동력분무기",G14*6000*0.5,IF(F14="보행SS기",G14*6000*0.5,IF(F14="승용SS기",G14*20000*0.5,IF(F14="전동무인방제기",G14*20000*0.5,IF(F14="소형트랙터",G14*20000*0.5))))))) -> 0
B15: 소계 | F15: 주행형동력분무기 | G15: =SUM(G16:G18) -> 0 | H15: =SUM(H16:H18) -> 0 | I15: =SUM(I16:I18) -> 0 | J15: =SUM(J16:J18) -> 0 | K15: =SUM(K16:K18) -> 0
B16: 홍길동 | C16: ㅇㅇ시 ㅇㅇ면 ㅇㅇ리 | D16: 사과 | F16: 주행형동력분무기 | H16: =SUM(I16:K16) -> 0 | I16: =IF(F16="동력제초기",G16*9000*0.15,IF(F16="농용고소작업차",G16*9000*0.15,IF(F16="주행형동력분무기",G16*6000*0.15,IF(F16="보행SS기",G16*6000*0.15,IF(F16="승용SS기",G16*20000*0.15,IF(F16="전동무인방제기",G16*20000*0.15,IF(F16="소형트랙터",G16*20000*0.15,0))))))) -> 0 | J16: =IF(F16="동력제초기",G16*9000*0.35,IF(F16="농용고소작업차",G16*9000*0.35,IF(F16="주행형동력분무기",G16*6000*0.35,IF(F16="보행SS기",G16*6000*0.35,IF(F16="승용SS기",G16*20000*0.35,IF(F16="전동무인방제기",G16*20000*0.35,IF(F16="소형트랙터",G16*20000*0.35))))))) -> 0 | K16: =IF(F16="동력제초기",G16*9000*0.5,IF(F16="농용고소작업차",G16*9000*0.5,IF(F16="주행형동력분무기",G16*6000*0.5,IF(F16="보행SS기",G16*6000*0.5,IF(F16="승용SS기",G16*20000*0.5,IF(F16="전동무인방제기",G16*20000*0.5,IF(F16="소형트랙터",G16*20000*0.5))))))) -> 0
B17: 김길동 | C17: ㅇㅇ시 ㅇㅇ면 ㅇㅇ리 | D17: 복숭아 | F17: 주행형동력분무기 | H17: =SUM(I17:K17) -> 0 | I17: =IF(F17="동력제초기",G17*9000*0.15,IF(F17="농용고소작업차",G17*9000*0.15,IF(F17="주행형동력분무기",G17*6000*0.15,IF(F17="보행SS기",G17*6000*0.15,IF(F17="승용SS기",G17*20000*0.15,IF(F17="전동무인방제기",G17*20000*0.15,IF(F17="소형트랙터",G17*20000*0.15,0))))))) -> 0 | J17: =IF(F17="동력제초기",G17*9000*0.35,IF(F17="농용고소작업차",G17*9000*0.35,IF(F17="주행형동력분무기",G17*6000*0.35,IF(F17="보행SS기",G17*6000*0.35,IF(F17="승용SS기",G17*20000*0.35,IF(F17="전동무인방제기",G17*20000*0.35,IF(F17="소형트랙터",G17*20000*0.35))))))) -> 0 | K17: =IF(F17="동력제초기",G17*9000*0.5,IF(F17="농용고소작업차",G17*9000*0.5,IF(F17="주행형동력분무기",G17*6000*0.5,IF(F17="보행SS기",G17*6000*0.5,IF(F17="승용SS기",G17*20000*0.5,IF(F17="전동무인방제기",G17*20000*0.5,IF(F17="소형트랙터",G17*20000*0.5))))))) -> 0
B18: 박길동 | C18: ㅇㅇ시 ㅇㅇ면 ㅇㅇ리 | D18: 자두 | F18: 주행형동력분무기 | H18: =SUM(I18:K18) -> 0 | I18: =IF(F18="동력제초기",G18*9000*0.15,IF(F18="농용고소작업차",G18*9000*0.15,IF(F18="주행형동력분무기",G18*6000*0.15,IF(F18="보행SS기",G18*6000*0.15,IF(F18="승용SS기",G18*20000*0.15,IF(F18="전동무인방제기",G18*20000*0.15,IF(F18="소형트랙터",G18*20000*0.15,0))))))) -> 0 | J18: =IF(F18="동력제초기",G18*9000*0.35,IF(F18="농용고소작업차",G18*9000*0.35,IF(F18="주행형동력분무기",G18*6000*0.35,IF(F18="보행SS기",G18*6000*0.35,IF(F18="승용SS기",G18*20000*0.35,IF(F18="전동무인방제기",G18*20000*0.35,IF(F18="소형트랙터",G18*20000*0.35))))))) -> 0 | K18: =IF(F18="동력제초기",G18*9000*0.5,IF(F18="농용고소작업차",G18*9000*0.5,IF(F18="주행형동력분무기",G18*6000*0.5,IF(F18="보행SS기",G18*6000*0.5,IF(F18="승용SS기",G18*20000*0.5,IF(F18="전동무인방제기",G18*20000*0.5,IF(F18="소형트랙터",G18*20000*0.5))))))) -> 0
B19: 소계 | F19: 보행SS기 | G19: =SUM(G20:G22) -> 0 | H19: =SUM(H20:H22) -> 0 | I19: =SUM(I20:I22) -> 0 | J19: =SUM(J20:J22) -> 0 | K19: =SUM(K20:K22) -> 0
B20: 홍길동 | C20: ㅇㅇ시 ㅇㅇ면 ㅇㅇ리 | D20: 사과 | F20: 보행SS기 | H20: =SUM(I20:K20) -> 0 | I20: =IF(F20="동력제초기",G20*9000*0.15,IF(F20="농용고소작업차",G20*9000*0.15,IF(F20="주행형동력분무기",G20*6000*0.15,IF(F20="보행SS기",G20*6000*0.15,IF(F20="승용SS기",G20*20000*0.15,IF(F20="전동무인방제기",G20*20000*0.15,IF(F20="소형트랙터",G20*20000*0.15,0))))))) -> 0 | J20: =IF(F20="동력제초기",G20*9000*0.35,IF(F20="농용고소작업차",G20*9000*0.35,IF(F20="주행형동력분무기",G20*6000*0.35,IF(F20="보행SS기",G20*6000*0.35,IF(F20="승용SS기",G20*20000*0.35,IF(F20="전동무인방제기",G20*20000*0.35,IF(F20="소형트랙터",G20*20000*0.35))))))) -> 0 | K20: =IF(F20="동력제초기",G20*9000*0.5,IF(F20="농용고소작업차",G20*9000*0.5,IF(F20="주행형동력분무기",G20*6000*0.5,IF(F20="보행SS기",G20*6000*0.5,IF(F20="승용SS기",G20*20000*0.5,IF(F20="전동무인방제기",G20*20000*0.5,IF(F20="소형트랙터",G20*20000*0.5))))))) -> 0
B21: 김길동 | C21: ㅇㅇ시 ㅇㅇ면 ㅇㅇ리 | D21: 복숭아 | F21: 보행SS기 | H21: =SUM(I21:K21) -> 0 | I21: =IF(F21="동력제초기",G21*9000*0.15,IF(F21="농용고소작업차",G21*9000*0.15,IF(F21="주행형동력분무기",G21*6000*0.15,IF(F21="보행SS기",G21*6000*0.15,IF(F21="승용SS기",G21*20000*0.15,IF(F21="전동무인방제기",G21*20000*0.15,IF(F21="소형트랙터",G21*20000*0.15,0))))))) -> 0 | J21: =IF(F21="동력제초기",G21*9000*0.35,IF(F21="농용고소작업차",G21*9000*0.35,IF(F21="주행형동력분무기",G21*6000*0.35,IF(F21="보행SS기",G21*6000*0.35,IF(F21="승용SS기",G21*20000*0.35,IF(F21="전동무인방제기",G21*20000*0.35,IF(F21="소형트랙터",G21*20000*0.35))))))) -> 0 | K21: =IF(F21="동력제초기",G21*9000*0.5,IF(F21="농용고소작업차",G21*9000*0.5,IF(F21="주행형동력분무기",G21*6000*0.5,IF(F21="보행SS기",G21*6000*0.5,IF(F21="승용SS기",G21*20000*0.5,IF(F21="전동무인방제기",G21*20000*0.5,IF(F21="소형트랙터",G21*20000*0.5))))))) -> 0
B22: 박길동 | C22: ㅇㅇ시 ㅇㅇ면 ㅇㅇ리 | D22: 자두 | F22: 보행SS기 | H22: =SUM(I22:K22) -> 0 | I22: =IF(F22="동력제초기",G22*9000*0.15,IF(F22="농용고소작업차",G22*9000*0.15,IF(F22="주행형동력분무기",G22*6000*0.15,IF(F22="보행SS기",G22*6000*0.15,IF(F22="승용SS기",G22*20000*0.15,IF(F22="전동무인방제기",G22*20000*0.15,IF(F22="소형트랙터",G22*20000*0.15,0))))))) -> 0 | J22: =IF(F22="동력제초기",G22*9000*0.35,IF(F22="농용고소작업차",G22*9000*0.35,IF(F22="주행형동력분무기",G22*6000*0.35,IF(F22="보행SS기",G22*6000*0.35,IF(F22="승용SS기",G22*20000*0.35,IF(F22="전동무인방제기",G22*20000*0.35,IF(F22="소형트랙터",G22*20000*0.35))))))) -> 0 | K22: =IF(F22="동력제초기",G22*9000*0.5,IF(F22="농용고소작업차",G22*9000*0.5,IF(F22="주행형동력분무기",G22*6000*0.5,IF(F22="보행SS기",G22*6000*0.5,IF(F22="승용SS기",G22*20000*0.5,IF(F22="전동무인방제기",G22*20000*0.5,IF(F22="소형트랙터",G22*20000*0.5))))))) -> 0
B23: 소계 | F23: 승용SS기 | G23: =SUM(G24:G26) -> 0 | H23: =SUM(H24:H26) -> 0 | I23: =SUM(I24:I26) -> 0 | J23: =SUM(J24:J26) -> 0 | K23: =SUM(K24:K26) -> 0
B24: 홍길동 | C24: ㅇㅇ시 ㅇㅇ면 ㅇㅇ리 | D24: 사과 | F24: 승용SS기 | H24: =SUM(I24:K24) -> 0 | I24: =IF(F24="동력제초기",G24*9000*0.15,IF(F24="농용고소작업차",G24*9000*0.15,IF(F24="주행형동력분무기",G24*6000*0.15,IF(F24="보행SS기",G24*6000*0.15,IF(F24="승용SS기",G24*20000*0.15,IF(F24="전동무인방제기",G24*20000*0.15,IF(F24="소형트랙터",G24*20000*0.15,0))))))) -> 0 | J24: =IF(F24="동력제초기",G24*9000*0.35,IF(F24="농용고소작업차",G24*9000*0.35,IF(F24="주행형동력분무기",G24*6000*0.35,IF(F24="보행SS기",G24*6000*0.35,IF(F24="승용SS기",G24*20000*0.35,IF(F24="전동무인방제기",G24*20000*0.35,IF(F24="소형트랙터",G24*20000*0.35))))))) -> 0 | K24: =IF(F24="동력제초기",G24*9000*0.5,IF(F24="농용고소작업차",G24*9000*0.5,IF(F24="주행형동력분무기",G24*6000*0.5,IF(F24="보행SS기",G24*6000*0.5,IF(F24="승용SS기",G24*20000*0.5,IF(F24="전동무인방제기",G24*20000*0.5,IF(F24="소형트랙터",G24*20000*0.5))))))) -> 0
B25: 김길동 | C25: ㅇㅇ시 ㅇㅇ면 ㅇㅇ리 | D25: 복숭아 | F25: 승용SS기 | H25: =SUM(I25:K25) -> 0 | I25: =IF(F25="동력제초기",G25*9000*0.15,IF(F25="농용고소작업차",G25*9000*0.15,IF(F25="주행형동력분무기",G25*6000*0.15,IF(F25="보행SS기",G25*6000*0.15,IF(F25="승용SS기",G25*20000*0.15,IF(F25="전동무인방제기",G25*20000*0.15,IF(F25="소형트랙터",G25*20000*0.15,0))))))) -> 0 | J25: =IF(F25="동력제초기",G25*9000*0.35,IF(F25="농용고소작업차",G25*9000*0.35,IF(F25="주행형동력분무기",G25*6000*0.35,IF(F25="보행SS기",G25*6000*0.35,IF(F25="승용SS기",G25*20000*0.35,IF(F25="전동무인방제기",G25*20000*0.35,IF(F25="소형트랙터",G25*20000*0.35))))))) -> 0 | K25: =IF(F25="동력제초기",G25*9000*0.5,IF(F25="농용고소작업차",G25*9000*0.5,IF(F25="주행형동력분무기",G25*6000*0.5,IF(F25="보행SS기",G25*6000*0.5,IF(F25="승용SS기",G25*20000*0.5,IF(F25="전동무인방제기",G25*20000*0.5,IF(F25="소형트랙터",G25*20000*0.5))))))) -> 0
B26: 박길동 | C26: ㅇㅇ시 ㅇㅇ면 ㅇㅇ리 | D26: 자두 | F26: 승용SS기 | H26: =SUM(I26:K26) -> 0 | I26: =IF(F26="동력제초기",G26*9000*0.15,IF(F26="농용고소작업차",G26*9000*0.15,IF(F26="주행형동력분무기",G26*6000*0.15,IF(F26="보행SS기",G26*6000*0.15,IF(F26="승용SS기",G26*20000*0.15,IF(F26="전동무인방제기",G26*20000*0.15,IF(F26="소형트랙터",G26*20000*0.15,0))))))) -> 0 | J26: =IF(F26="동력제초기",G26*9000*0.35,IF(F26="농용고소작업차",G26*9000*0.35,IF(F26="주행형동력분무기",G26*6000*0.35,IF(F26="보행SS기",G26*6000*0.35,IF(F26="승용SS기",G26*20000*0.35,IF(F26="전동무인방제기",G26*20000*0.35,IF(F26="소형트랙터",G26*20000*0.35))))))) -> 0 | K26: =IF(F26="동력제초기",G26*9000*0.5,IF(F26="농용고소작업차",G26*9000*0.5,IF(F26="주행형동력분무기",G26*6000*0.5,IF(F26="보행SS기",G26*6000*0.5,IF(F26="승용SS기",G26*20000*0.5,IF(F26="전동무인방제기",G26*20000*0.5,IF(F26="소형트랙터",G26*20000*0.5))))))) -> 0
B27: 소계 | F27: 전동무인방제기 | G27: =SUM(G28:G30) -> 0 | H27: =SUM(H28:H30) -> 0 | I27: =SUM(I28:I30) -> 0 | J27: =SUM(J28:J30) -> 0 | K27: =SUM(K28:K30) -> 0
B28: 홍길동 | C28: ㅇㅇ시 ㅇㅇ면 ㅇㅇ리 | D28: 사과 | F28: 전동무인방제기 | H28: =SUM(I28:K28) -> 0 | I28: =IF(F28="동력제초기",G28*9000*0.15,IF(F28="농용고소작업차",G28*9000*0.15,IF(F28="주행형동력분무기",G28*6000*0.15,IF(F28="보행SS기",G28*6000*0.15,IF(F28="승용SS기",G28*20000*0.15,IF(F28="전동무인방제기",G28*20000*0.15,IF(F28="소형트랙터",G28*20000*0.15,0))))))) -> 0 | J28: =IF(F28="동력제초기",G28*9000*0.35,IF(F28="농용고소작업차",G28*9000*0.35,IF(F28="주행형동력분무기",G28*6000*0.35,IF(F28="보행SS기",G28*6000*0.35,IF(F28="승용SS기",G28*20000*0.35,IF(F28="전동무인방제기",G28*20000*0.35,IF(F28="소형트랙터",G28*20000*0.35))))))) -> 0 | K28: =IF(F28="동력제초기",G28*9000*0.5,IF(F28="농용고소작업차",G28*9000*0.5,IF(F28="주행형동력분무기",G28*6000*0.5,IF(F28="보행SS기",G28*6000*0.5,IF(F28="승용SS기",G28*20000*0.5,IF(F28="전동무인방제기",G28*20000*0.5,IF(F28="소형트랙터",G28*20000*0.5))))))) -> 0
B29: 김길동 | C29: ㅇㅇ시 ㅇㅇ면 ㅇㅇ리 | D29: 복숭아 | F29: 전동무인방제기 | H29: =SUM(I29:K29) -> 0 | I29: =IF(F29="동력제초기",G29*9000*0.15,IF(F29="농용고소작업차",G29*9000*0.15,IF(F29="주행형동력분무기",G29*6000*0.15,IF(F29="보행SS기",G29*6000*0.15,IF(F29="승용SS기",G29*20000*0.15,IF(F29="전동무인방제기",G29*20000*0.15,IF(F29="소형트랙터",G29*20000*0.15,0))))))) -> 0 | J29: =IF(F29="동력제초기",G29*9000*0.35,IF(F29="농용고소작업차",G29*9000*0.35,IF(F29="주행형동력분무기",G29*6000*0.35,IF(F29="보행SS기",G29*6000*0.35,IF(F29="승용SS기",G29*20000*0.35,IF(F29="전동무인방제기",G29*20000*0.35,IF(F29="소형트랙터",G29*20000*0.35))))))) -> 0 | K29: =IF(F29="동력제초기",G29*9000*0.5,IF(F29="농용고소작업차",G29*9000*0.5,IF(F29="주행형동력분무기",G29*6000*0.5,IF(F29="보행SS기",G29*6000*0.5,IF(F29="승용SS기",G29*20000*0.5,IF(F29="전동무인방제기",G29*20000*0.5,IF(F29="소형트랙터",G29*20000*0.5))))))) -> 0
B30: 박길동 | C30: ㅇㅇ시 ㅇㅇ면 ㅇㅇ리 | D30: 자두 | F30: 전동무인방제기 | H30: =SUM(I30:K30) -> 0 | I30: =IF(F30="동력제초기",G30*9000*0.15,IF(F30="농용고소작업차",G30*9000*0.15,IF(F30="주행형동력분무기",G30*6000*0.15,IF(F30="보행SS기",G30*6000*0.15,IF(F30="승용SS기",G30*20000*0.15,IF(F30="전동무인방제기",G30*20000*0.15,IF(F30="소형트랙터",G30*20000*0.15,0))))))) -> 0 | J30: =IF(F30="동력제초기",G30*9000*0.35,IF(F30="농용고소작업차",G30*9000*0.35,IF(F30="주행형동력분무기",G30*6000*0.35,IF(F30="보행SS기",G30*6000*0.35,IF(F30="승용SS기",G30*20000*0.35,IF(F30="전동무인방제기",G30*20000*0.35,IF(F30="소형트랙터",G30*20000*0.35))))))) -> 0 | K30: =IF(F30="동력제초기",G30*9000*0.5,IF(F30="농용고소작업차",G30*9000*0.5,IF(F30="주행형동력분무기",G30*6000*0.5,IF(F30="보행SS기",G30*6000*0.5,IF(F30="승용SS기",G30*20000*0.5,IF(F30="전동무인방제기",G30*20000*0.5,IF(F30="소형트랙터",G30*20000*0.5))))))) -> 0
B31: 소계 | F31: 소형트랙터 | G31: =SUM(G32:G34) -> 0 | H31: =SUM(H32:H34) -> 0 | I31: =SUM(I32:I34) -> 0 | J31: =SUM(J32:J34) -> 0 | K31: =SUM(K32:K34) -> 0
B32: 홍길동 | C32: ㅇㅇ시 ㅇㅇ면 ㅇㅇ리 | D32: 사과 | F32: 소형트랙터 | H32: =SUM(I32:K32) -> 0 | I32: =IF(F32="동력제초기",G32*9000*0.15,IF(F32="농용고소작업차",G32*9000*0.15,IF(F32="주행형동력분무기",G32*6000*0.15,IF(F32="보행SS기",G32*6000*0.15,IF(F32="승용SS기",G32*20000*0.15,IF(F32="전동무인방제기",G32*20000*0.15,IF(F32="소형트랙터",G32*20000*0.15,0))))))) -> 0 | J32: =IF(F32="동력제초기",G32*9000*0.35,IF(F32="농용고소작업차",G32*9000*0.35,IF(F32="주행형동력분무기",G32*6000*0.35,IF(F32="보행SS기",G32*6000*0.35,IF(F32="승용SS기",G32*20000*0.35,IF(F32="전동무인방제기",G32*20000*0.35,IF(F32="소형트랙터",G32*20000*0.35))))))) -> 0 | K32: =IF(F32="동력제초기",G32*9000*0.5,IF(F32="농용고소작업차",G32*9000*0.5,IF(F32="주행형동력분무기",G32*6000*0.5,IF(F32="보행SS기",G32*6000*0.5,IF(F32="승용SS기",G32*20000*0.5,IF(F32="전동무인방제기",G32*20000*0.5,IF(F32="소형트랙터",G32*20000*0.5))))))) -> 0
B33: 김길동 | C33: ㅇㅇ시 ㅇㅇ면 ㅇㅇ리 | D33: 복숭아 | F33: 소형트랙터 | H33: =SUM(I33:K33) -> 0 | I33: =IF(F33="동력제초기",G33*9000*0.15,IF(F33="농용고소작업차",G33*9000*0.15,IF(F33="주행형동력분무기",G33*6000*0.15,IF(F33="보행SS기",G33*6000*0.15,IF(F33="승용SS기",G33*20000*0.15,IF(F33="전동무인방제기",G33*20000*0.15,IF(F33="소형트랙터",G33*20000*0.15,0))))))) -> 0 | J33: =IF(F33="동력제초기",G33*9000*0.35,IF(F33="농용고소작업차",G33*9000*0.35,IF(F33="주행형동력분무기",G33*6000*0.35,IF(F33="보행SS기",G33*6000*0.35,IF(F33="승용SS기",G33*20000*0.35,IF(F33="전동무인방제기",G33*20000*0.35,IF(F33="소형트랙터",G33*20000*0.35))))))) -> 0 | K33: =IF(F33="동력제초기",G33*9000*0.5,IF(F33="농용고소작업차",G33*9000*0.5,IF(F33="주행형동력분무기",G33*6000*0.5,IF(F33="보행SS기",G33*6000*0.5,IF(F33="승용SS기",G33*20000*0.5,IF(F33="전동무인방제기",G33*20000*0.5,IF(F33="소형트랙터",G33*20000*0.5))))))) -> 0
B34: 박길동 | C34: ㅇㅇ시 ㅇㅇ면 ㅇㅇ리 | D34: 자두 | F34: 소형트랙터 | H34: =SUM(I34:K34) -> 0 | I34: =IF(F34="동력제초기",G34*9000*0.15,IF(F34="농용고소작업차",G34*9000*0.15,IF(F34="주행형동력분무기",G34*6000*0.15,IF(F34="보행SS기",G34*6000*0.15,IF(F34="승용SS기",G34*20000*0.15,IF(F34="전동무인방제기",G34*20000*0.15,IF(F34="소형트랙터",G34*20000*0.15,0))))))) -> 0 | J34: =IF(F34="동력제초기",G34*9000*0.35,IF(F34="농용고소작업차",G34*9000*0.35,IF(F34="주행형동력분무기",G34*6000*0.35,IF(F34="보행SS기",G34*6000*0.35,IF(F34="승용SS기",G34*20000*0.35,IF(F34="전동무인방제기",G34*20000*0.35,IF(F34="소형트랙터",G34*20000*0.35))))))) -> 0 | K34: =IF(F34="동력제초기",G34*9000*0.5,IF(F34="농용고소작업차",G34*9000*0.5,IF(F34="주행형동력분무기",G34*6000*0.5,IF(F34="보행SS기",G34*6000*0.5,IF(F34="승용SS기",G34*20000*0.5,IF(F34="전동무인방제기",G34*20000*0.5,IF(F34="소형트랙터",G34*20000*0.5))))))) -> 0
A36: * 노란색 셀만 입력 * 반드시 읍면에서 전체 검토 후, 적정 농가 및 사업기준에 적합하도록 기재

Sheet 과실생산비절감 및 품질제고
A1: 2027년도 과수화훼분야 도비지원사업 수요조사 결과
A2: □ 사업명 : 과실생산비절감 및 품질제고 지원사업
M3: (단위:천원)
A4: 읍면명 | B4: 신청자 | D4: 주요작목 | E4: 재배면적 (㎡) | F4: 사업신청 | I4: 사 업 비 | M4: 비고
B5: 성명 | C5: 거주지 | F5: 품목명 | G5: 사업량 | H5: 단위 | I5: 계 (100%) | J5: 도비 (15%) | K5: 시군비 (35%) | L5: 자부담 (50%)
A6: 총계 | I6: =SUM(I7,I11,I15,I19,I23) -> 0 | J6: =SUM(J7,J11,J15,J19,J23) -> 0 | K6: =SUM(K7,K11,K15,K19,K23) -> 0 | L6: =SUM(L7,L11,L15,L19,L23) -> 0 | O6: 품목명 | P6: 지원단가(천원) | Q6: 단위
B7: 소계 | F7: 친환경사과적화제 | G7: =SUM(G8:G10) -> 0 | I7: =SUM(I8:I10) -> 0 | J7: =SUM(J8:J10) -> 0 | K7: =SUM(K8:K10) -> 0 | L7: =SUM(L8:L10) -> 0 | O7: 친환경사과적화제 | P7: 280 | Q7: ha
B8: 홍길동 | C8: ㅇㅇ시 ㅇㅇ면 ㅇㅇ리 | D8: 사과 | F8: 친환경사과적화제 | H8: ha | I8: =SUM(J8:L8) -> 0 | J8: =IF(F8="친환경사과적화제",G8*280*0.15,IF(F8="과실장기저장제",G8*33*0.15,IF(F8="비파괴당도측정기",G8*3000*0.15,IF(F8="농업용수처리기",G8*7000*0.15,IF(F8="신선도유지기",G8*2500*0.15,0))))) -> 0 | K8: =IF(F8="친환경사과적화제",G8*280*0.35,IF(F8="과실장기저장제",G8*33*0.35,IF(F8="비파괴당도측정기",G8*3000*0.35,IF(F8="농업용수처리기",G8*7000*0.35,IF(F8="신선도유지기",G8*2500*0.35,0))))) -> 0 | L8: =IF(F8="친환경사과적화제",G8*280*0.5,IF(F8="과실장기저장제",G8*33*0.5,IF(F8="비파괴당도측정기",G8*3000*0.5,IF(F8="농업용수처리기",G8*7000*0.5,IF(F8="신선도유지기",G8*2500*0.5,0))))) -> 0 | O8: 과실장기저장제 | P8: 33 | Q8: ㎡
B9: 김길동 | C9: ㅇㅇ시 ㅇㅇ면 ㅇㅇ리 | D9: 사과 | F9: 친환경사과적화제 | H9: ha | I9: =SUM(J9:L9) -> 0 | J9: =IF(F9="친환경사과적화제",G9*280*0.15,IF(F9="과실장기저장제",G9*33*0.15,IF(F9="비파괴당도측정기",G9*3000*0.15,IF(F9="농업용수처리기",G9*7000*0.15,IF(F9="신선도유지기",G9*2500*0.15,0))))) -> 0 | K9: =IF(F9="친환경사과적화제",G9*280*0.35,IF(F9="과실장기저장제",G9*33*0.35,IF(F9="비파괴당도측정기",G9*3000*0.35,IF(F9="농업용수처리기",G9*7000*0.35,IF(F9="신선도유지기",G9*2500*0.35,0))))) -> 0 | L9: =IF(F9="친환경사과적화제",G9*280*0.5,IF(F9="과실장기저장제",G9*33*0.5,IF(F9="비파괴당도측정기",G9*3000*0.5,IF(F9="농업용수처리기",G9*7000*0.5,IF(F9="신선도유지기",G9*2500*0.5,0))))) -> 0 | O9: 비파괴당도측정기 | P9: 3,000 | Q9: 대
B10: 박길동 | C10: ㅇㅇ시 ㅇㅇ면 ㅇㅇ리 | D10: 사과 | F10: 친환경사과적화제 | H10: ha | I10: =SUM(J10:L10) -> 0 | J10: =IF(F10="친환경사과적화제",G10*280*0.15,IF(F10="과실장기저장제",G10*33*0.15,IF(F10="비파괴당도측정기",G10*3000*0.15,IF(F10="농업용수처리기",G10*7000*0.15,IF(F10="신선도유지기",G10*2500*0.15,0))))) -> 0 | K10: =IF(F10="친환경사과적화제",G10*280*0.35,IF(F10="과실장기저장제",G10*33*0.35,IF(F10="비파괴당도측정기",G10*3000*0.35,IF(F10="농업용수처리기",G10*7000*0.35,IF(F10="신선도유지기",G10*2500*0.35,0))))) -> 0 | L10: =IF(F10="친환경사과적화제",G10*280*0.5,IF(F10="과실장기저장제",G10*33*0.5,IF(F10="비파괴당도측정기",G10*3000*0.5,IF(F10="농업용수처리기",G10*7000*0.5,IF(F10="신선도유지기",G10*2500*0.5,0))))) -> 0 | O10: 농업용수처리기 | P10: 7,000 | Q10: 대
B11: 소계 | F11: 과실장기저장제 | G11: =SUM(G12:G14) -> 0 | I11: =SUM(I12:I14) -> 0 | J11: =SUM(J12:J14) -> 0 | K11: =SUM(K12:K14) -> 0 | L11: =SUM(L12:L14) -> 0 | O11: 신선도유지기 | P11: 2,500 | Q11: 대
B12: 홍길동 | C12: ㅇㅇ시 ㅇㅇ면 ㅇㅇ리 | D12: 사과 | F12: 과실장기저장제 | H12: ㎡ | I12: =SUM(J12:L12) -> 0 | J12: =IF(F12="친환경사과적화제",G12*280*0.15,IF(F12="과실장기저장제",G12*33*0.15,IF(F12="비파괴당도측정기",G12*3000*0.15,IF(F12="농업용수처리기",G12*7000*0.15,IF(F12="신선도유지기",G12*2500*0.15,0))))) -> 0 | K12: =IF(F12="친환경사과적화제",G12*280*0.35,IF(F12="과실장기저장제",G12*33*0.35,IF(F12="비파괴당도측정기",G12*3000*0.35,IF(F12="농업용수처리기",G12*7000*0.35,IF(F12="신선도유지기",G12*2500*0.35,0))))) -> 0 | L12: =IF(F12="친환경사과적화제",G12*280*0.5,IF(F12="과실장기저장제",G12*33*0.5,IF(F12="비파괴당도측정기",G12*3000*0.5,IF(F12="농업용수처리기",G12*7000*0.5,IF(F12="신선도유지기",G12*2500*0.5,0))))) -> 0
B13: 김길동 | C13: ㅇㅇ시 ㅇㅇ면 ㅇㅇ리 | D13: 포도 | F13: 과실장기저장제 | H13: ㎡ | I13: =SUM(J13:L13) -> 0 | J13: =IF(F13="친환경사과적화제",G13*280*0.15,IF(F13="과실장기저장제",G13*33*0.15,IF(F13="비파괴당도측정기",G13*3000*0.15,IF(F13="농업용수처리기",G13*7000*0.15,IF(F13="신선도유지기",G13*2500*0.15,0))))) -> 0 | K13: =IF(F13="친환경사과적화제",G13*280*0.35,IF(F13="과실장기저장제",G13*33*0.35,IF(F13="비파괴당도측정기",G13*3000*0.35,IF(F13="농업용수처리기",G13*7000*0.35,IF(F13="신선도유지기",G13*2500*0.35,0))))) -> 0 | L13: =IF(F13="친환경사과적화제",G13*280*0.5,IF(F13="과실장기저장제",G13*33*0.5,IF(F13="비파괴당도측정기",G13*3000*0.5,IF(F13="농업용수처리기",G13*7000*0.5,IF(F13="신선도유지기",G13*2500*0.5,0))))) -> 0
B14: 박길동 | C14: ㅇㅇ시 ㅇㅇ면 ㅇㅇ리 | D14: 사과 | F14: 과실장기저장제 | H14: ㎡ | I14: =SUM(J14:L14) -> 0 | J14: =IF(F14="친환경사과적화제",G14*280*0.15,IF(F14="과실장기저장제",G14*33*0.15,IF(F14="비파괴당도측정기",G14*3000*0.15,IF(F14="농업용수처리기",G14*7000*0.15,IF(F14="신선도유지기",G14*2500*0.15,0))))) -> 0 | K14: =IF(F14="친환경사과적화제",G14*280*0.35,IF(F14="과실장기저장제",G14*33*0.35,IF(F14="비파괴당도측정기",G14*3000*0.35,IF(F14="농업용수처리기",G14*7000*0.35,IF(F14="신선도유지기",G14*2500*0.35,0))))) -> 0 | L14: =IF(F14="친환경사과적화제",G14*280*0.5,IF(F14="과실장기저장제",G14*33*0.5,IF(F14="비파괴당도측정기",G14*3000*0.5,IF(F14="농업용수처리기",G14*7000*0.5,IF(F14="신선도유지기",G14*2500*0.5,0))))) -> 0
B15: 소계 | F15: 비파괴당도측정기 | G15: =SUM(G16:G18) -> 0 | I15: =SUM(I16:I18) -> 0 | J15: =SUM(J16:J18) -> 0 | K15: =SUM(K16:K18) -> 0 | L15: =SUM(L16:L18) -> 0
B16: 홍길동 | C16: ㅇㅇ시 ㅇㅇ면 ㅇㅇ리 | D16: 사과 | F16: 비파괴당도측정기 | H16: 대 | I16: =SUM(J16:L16) -> 0 | J16: =IF(F16="친환경사과적화제",G16*280*0.15,IF(F16="과실장기저장제",G16*33*0.15,IF(F16="비파괴당도측정기",G16*3000*0.15,IF(F16="농업용수처리기",G16*7000*0.15,IF(F16="신선도유지기",G16*2500*0.15,0))))) -> 0 | K16: =IF(F16="친환경사과적화제",G16*280*0.35,IF(F16="과실장기저장제",G16*33*0.35,IF(F16="비파괴당도측정기",G16*3000*0.35,IF(F16="농업용수처리기",G16*7000*0.35,IF(F16="신선도유지기",G16*2500*0.35,0))))) -> 0 | L16: =IF(F16="친환경사과적화제",G16*280*0.5,IF(F16="과실장기저장제",G16*33*0.5,IF(F16="비파괴당도측정기",G16*3000*0.5,IF(F16="농업용수처리기",G16*7000*0.5,IF(F16="신선도유지기",G16*2500*0.5,0))))) -> 0
B17: 김길동 | C17: ㅇㅇ시 ㅇㅇ면 ㅇㅇ리 | D17: 포도 | F17: 비파괴당도측정기 | H17: 대 | I17: =SUM(J17:L17) -> 0 | J17: =IF(F17="친환경사과적화제",G17*280*0.15,IF(F17="과실장기저장제",G17*33*0.15,IF(F17="비파괴당도측정기",G17*3000*0.15,IF(F17="농업용수처리기",G17*7000*0.15,IF(F17="신선도유지기",G17*2500*0.15,0))))) -> 0 | K17: =IF(F17="친환경사과적화제",G17*280*0.35,IF(F17="과실장기저장제",G17*33*0.35,IF(F17="비파괴당도측정기",G17*3000*0.35,IF(F17="농업용수처리기",G17*7000*0.35,IF(F17="신선도유지기",G17*2500*0.35,0))))) -> 0 | L17: =IF(F17="친환경사과적화제",G17*280*0.5,IF(F17="과실장기저장제",G17*33*0.5,IF(F17="비파괴당도측정기",G17*3000*0.5,IF(F17="농업용수처리기",G17*7000*0.5,IF(F17="신선도유지기",G17*2500*0.5,0))))) -> 0
B18: 박길동 | C18: ㅇㅇ시 ㅇㅇ면 ㅇㅇ리 | D18: 사과 | F18: 비파괴당도측정기 | H18: 대 | I18: =SUM(J18:L18) -> 0 | J18: =IF(F18="친환경사과적화제",G18*280*0.15,IF(F18="과실장기저장제",G18*33*0.15,IF(F18="비파괴당도측정기",G18*3000*0.15,IF(F18="농업용수처리기",G18*7000*0.15,IF(F18="신선도유지기",G18*2500*0.15,0))))) -> 0 | K18: =IF(F18="친환경사과적화제",G18*280*0.35,IF(F18="과실장기저장제",G18*33*0.35,IF(F18="비파괴당도측정기",G18*3000*0.35,IF(F18="농업용수처리기",G18*7000*0.35,IF(F18="신선도유지기",G18*2500*0.35,0))))) -> 0 | L18: =IF(F18="친환경사과적화제",G18*280*0.5,IF(F18="과실장기저장제",G18*33*0.5,IF(F18="비파괴당도측정기",G18*3000*0.5,IF(F18="농업용수처리기",G18*7000*0.5,IF(F18="신선도유지기",G18*2500*0.5,0))))) -> 0
B19: 소계 | F19: 농업용수처리기 | G19: =SUM(G20:G22) -> 0 | I19: =SUM(I20:I22) -> 0 | J19: =SUM(J20:J22) -> 0 | K19: =SUM(K20:K22) -> 0 | L19: =SUM(L20:L22) -> 0
B20: 홍길동 | C20: ㅇㅇ시 ㅇㅇ면 ㅇㅇ리 | D20: 사과 | F20: 농업용수처리기 | H20: 대 | I20: =SUM(J20:L20) -> 0 | J20: =IF(F20="친환경사과적화제",G20*280*0.15,IF(F20="과실장기저장제",G20*33*0.15,IF(F20="비파괴당도측정기",G20*3000*0.15,IF(F20="농업용수처리기",G20*7000*0.15,IF(F20="신선도유지기",G20*2500*0.15,0))))) -> 0 | K20: =IF(F20="친환경사과적화제",G20*280*0.35,IF(F20="과실장기저장제",G20*33*0.35,IF(F20="비파괴당도측정기",G20*3000*0.35,IF(F20="농업용수처리기",G20*7000*0.35,IF(F20="신선도유지기",G20*2500*0.35,0))))) -> 0 | L20: =IF(F20="친환경사과적화제",G20*280*0.5,IF(F20="과실장기저장제",G20*33*0.5,IF(F20="비파괴당도측정기",G20*3000*0.5,IF(F20="농업용수처리기",G20*7000*0.5,IF(F20="신선도유지기",G20*2500*0.5,0))))) -> 0
B21: 김길동 | C21: ㅇㅇ시 ㅇㅇ면 ㅇㅇ리 | D21: 포도 | F21: 농업용수처리기 | H21: 대 | I21: =SUM(J21:L21) -> 0 | J21: =IF(F21="친환경사과적화제",G21*280*0.15,IF(F21="과실장기저장제",G21*33*0.15,IF(F21="비파괴당도측정기",G21*3000*0.15,IF(F21="농업용수처리기",G21*7000*0.15,IF(F21="신선도유지기",G21*2500*0.15,0))))) -> 0 | K21: =IF(F21="친환경사과적화제",G21*280*0.35,IF(F21="과실장기저장제",G21*33*0.35,IF(F21="비파괴당도측정기",G21*3000*0.35,IF(F21="농업용수처리기",G21*7000*0.35,IF(F21="신선도유지기",G21*2500*0.35,0))))) -> 0 | L21: =IF(F21="친환경사과적화제",G21*280*0.5,IF(F21="과실장기저장제",G21*33*0.5,IF(F21="비파괴당도측정기",G21*3000*0.5,IF(F21="농업용수처리기",G21*7000*0.5,IF(F21="신선도유지기",G21*2500*0.5,0))))) -> 0
B22: 박길동 | C22: ㅇㅇ시 ㅇㅇ면 ㅇㅇ리 | D22: 사과 | F22: 농업용수처리기 | H22: 대 | I22: =SUM(J22:L22) -> 0 | J22: =IF(F22="친환경사과적화제",G22*280*0.15,IF(F22="과실장기저장제",G22*33*0.15,IF(F22="비파괴당도측정기",G22*3000*0.15,IF(F22="농업용수처리기",G22*7000*0.15,IF(F22="신선도유지기",G22*2500*0.15,0))))) -> 0 | K22: =IF(F22="친환경사과적화제",G22*280*0.35,IF(F22="과실장기저장제",G22*33*0.35,IF(F22="비파괴당도측정기",G22*3000*0.35,IF(F22="농업용수처리기",G22*7000*0.35,IF(F22="신선도유지기",G22*2500*0.35,0))))) -> 0 | L22: =IF(F22="친환경사과적화제",G22*280*0.5,IF(F22="과실장기저장제",G22*33*0.5,IF(F22="비파괴당도측정기",G22*3000*0.5,IF(F22="농업용수처리기",G22*7000*0.5,IF(F22="신선도유지기",G22*2500*0.5,0))))) -> 0
B23: 소계 | F23: 신선도유지기 | G23: =SUM(G24:G26) -> 0 | I23: =SUM(I24:I26) -> 0 | J23: =SUM(J24:J26) -> 0 | K23: =SUM(K24:K26) -> 0 | L23: =SUM(L24:L26) -> 0
B24: 홍길동 | C24: ㅇㅇ시 ㅇㅇ면 ㅇㅇ리 | D24: 사과 | F24: 신선도유지기 | H24: 대 | I24: =SUM(J24:L24) -> 0 | J24: =IF(F24="친환경사과적화제",G24*280*0.15,IF(F24="과실장기저장제",G24*33*0.15,IF(F24="비파괴당도측정기",G24*3000*0.15,IF(F24="농업용수처리기",G24*7000*0.15,IF(F24="신선도유지기",G24*2500*0.15,0))))) -> 0 | K24: =IF(F24="친환경사과적화제",G24*280*0.35,IF(F24="과실장기저장제",G24*33*0.35,IF(F24="비파괴당도측정기",G24*3000*0.35,IF(F24="농업용수처리기",G24*7000*0.35,IF(F24="신선도유지기",G24*2500*0.35,0))))) -> 0 | L24: =IF(F24="친환경사과적화제",G24*280*0.5,IF(F24="과실장기저장제",G24*33*0.5,IF(F24="비파괴당도측정기",G24*3000*0.5,IF(F24="농업용수처리기",G24*7000*0.5,IF(F24="신선도유지기",G24*2500*0.5,0))))) -> 0
B25: 김길동 | C25: ㅇㅇ시 ㅇㅇ면 ㅇㅇ리 | D25: 포도 | F25: 신선도유지기 | H25: 대 | I25: =SUM(J25:L25) -> 0 | J25: =IF(F25="친환경사과적화제",G25*280*0.15,IF(F25="과실장기저장제",G25*33*0.15,IF(F25="비파괴당도측정기",G25*3000*0.15,IF(F25="농업용수처리기",G25*7000*0.15,IF(F25="신선도유지기",G25*2500*0.15,0))))) -> 0 | K25: =IF(F25="친환경사과적화제",G25*280*0.35,IF(F25="과실장기저장제",G25*33*0.35,IF(F25="비파괴당도측정기",G25*3000*0.35,IF(F25="농업용수처리기",G25*7000*0.35,IF(F25="신선도유지기",G25*2500*0.35,0))))) -> 0 | L25: =IF(F25="친환경사과적화제",G25*280*0.5,IF(F25="과실장기저장제",G25*33*0.5,IF(F25="비파괴당도측정기",G25*3000*0.5,IF(F25="농업용수처리기",G25*7000*0.5,IF(F25="신선도유지기",G25*2500*0.5,0))))) -> 0
B26: 박길동 | C26: ㅇㅇ시 ㅇㅇ면 ㅇㅇ리 | D26: 사과 | F26: 신선도유지기 | H26: 대 | I26: =SUM(J26:L26) -> 0 | J26: =IF(F26="친환경사과적화제",G26*280*0.15,IF(F26="과실장기저장제",G26*33*0.15,IF(F26="비파괴당도측정기",G26*3000*0.15,IF(F26="농업용수처리기",G26*7000*0.15,IF(F26="신선도유지기",G26*2500*0.15,0))))) -> 0 | K26: =IF(F26="친환경사과적화제",G26*280*0.35,IF(F26="과실장기저장제",G26*33*0.35,IF(F26="비파괴당도측정기",G26*3000*0.35,IF(F26="농업용수처리기",G26*7000*0.35,IF(F26="신선도유지기",G26*2500*0.35,0))))) -> 0 | L26: =IF(F26="친환경사과적화제",G26*280*0.5,IF(F26="과실장기저장제",G26*33*0.5,IF(F26="비파괴당도측정기",G26*3000*0.5,IF(F26="농업용수처리기",G26*7000*0.5,IF(F26="신선도유지기",G26*2500*0.5,0))))) -> 0
A28: * 노란색 셀만 입력 * 반드시 읍면에서 전체 검토 후, 적정 농가 및 사업기준에 적합하도록 기재

Sheet 대체과수품목육성지원
A1: 2027년도 과수화훼분야 도비지원사업 수요조사 결과
A2: □ 사업명 : 대체과수 품목육성 지원
M3: (단위:천원)
A4: 읍면명 | B4: 신청자 | D4: 주요작목 | E4: 재배면적 (㎡) | F4: 사업신청 | I4: 사 업 비 | M4: 비고
B5: 성명 | C5: 거주지 | F5: 세부사업명 | G5: 단가 (천원) | H5: 사업량 (㎡) | I5: 계 (100%) | J5: 도비 (15%) | K5: 시군비 (35%) | L5: 자부담 (50%)
A6: 총계 | B6: =COUNTA(B7:B300)&"개소" -> 3개소 | H6: =SUM(H7:H11) -> 0 | I6: =SUM(J6:L6) -> 0 | J6: =SUM(J7:J15) -> 0 | K6: =SUM(K7:K15) -> 0 | L6: =SUM(L7:L15) -> 0
B7: 홍길동 | C7: ㅇㅇ시 ㅇㅇ면 ㅇㅇ리 | D7: 체리 | F7: 비가림시설 | I7: 0 | J7: =G7*H7*0.15 -> 0 | K7: =G7*H7*0.35 -> 0 | L7: =G7*H7*0.5 -> 0
B8: 김길동 | C8: ㅇㅇ시 ㅇㅇ면 ㅇㅇ리 | D8: 백향과 | F8: 지주시설 | I8: 0 | J8: =G8*H8*0.15 -> 0 | K8: =G8*H8*0.35 -> 0 | L8: =G8*H8*0.5 -> 0
B9: 박길동 | C9: ㅇㅇ시 ㅇㅇ면 ㅇㅇ리 | D9: 한라봉 | F9: 관수관비시설 | I9: 0 | J9: =G9*H9*0.15 -> 0 | K9: =G9*H9*0.35 -> 0 | L9: =G9*H9*0.5 -> 0
I10: 0 | J10: =G10*H10*0.15 -> 0 | K10: =G10*H10*0.35 -> 0 | L10: =G10*H10*0.5 -> 0
I11: 0 | J11: =G11*H11*0.15 -> 0 | K11: =G11*H11*0.35 -> 0 | L11: =G11*H11*0.5 -> 0
A13: * 노란색 셀만 입력 * 반드시 읍면에서 전체 검토 후, 적정 농가 및 사업기준에 적합하도록 기재 * 사업단가는 FTA기금 과수고품질생산시설현대화사업 세부사업단가 준용 또는 객관적 단가 제시

Sheet 과수분야 저온피해경감제 지원
A1: 2027년도 과수화훼분야 도비지원사업 수요조사 결과
A2: □ 사업명 : 과수분야 저온피해경감제 지원
N3: (단위:천원)
A4: 읍면명 | B4: 신청자 | D4: 재배작목 | E4: 사업신청(재배면적) | G4: 사업내용 | J4: 사 업 비 | N4: 비고
B5: 성명 | C5: 거주지 | E5: (ha)기준 | F5: (㎡)기준 | G5: 저온피해경감제 상표명 (예정) | H5: 사업량 | I5: 단위 (ha, ㎡, 병) | J5: 계 (100%) | K5: 도비 (15%) | L5: 시군비 (35%) | M5: 자부담 (50%)
A6: 총계 | E6: =SUM(E7:E10) -> 2.00 | F6: =SUM(F7:F10) -> 20,000 | J6: =SUM(K6:M6) -> 660 | K6: =SUM(K7:K10) -> 99 | L6: =SUM(L7:L10) -> 231 | M6: =SUM(M7:M10) -> 330
A7: 예시) | B7: 홍길동 | C7: ㅇㅇ시 ㅇㅇ면 ㅇㅇ리 | D7: 사과 | E7: =SUM(F7:F7)/10000 -> 1.00 | F7: 10,000 | G7: 추후결정 | H7: 6 | I7: 병 | J7: =SUM(K7:M7) -> 330 | K7: =E7*330*0.15 -> 50 | L7: =E7*330*0.35 -> 116 | M7: =E7*330*0.5 -> 165
B8: 김길동 | C8: ㅇㅇ시 ㅇㅇ면 ㅇㅇ리 | E8: =SUM(F8:F8)/10000 -> 0.50 | F8: 5,000 | G8: 미정 | H8: 3 | I8: 병 | J8: =SUM(K8:M8) -> 165 | K8: =E8*330*0.15 -> 25 | L8: =E8*330*0.35 -> 58 | M8: =E8*330*0.5 -> 83
B9: 박길동 | C9: ㅇㅇ시 ㅇㅇ면 ㅇㅇ리 | E9: =SUM(F9:F9)/10000 -> 0.50 | F9: 5,000 | G9: 아미노산 | H9: 3 | I9: 병 | J9: =SUM(K9:M9) -> 165 | K9: =E9*330*0.15 -> 25 | L9: =E9*330*0.35 -> 58 | M9: =E9*330*0.5 -> 83
E10: =SUM(F10:F10)/10000 -> 0.00 | J10: =SUM(K10:M10) -> 0 | K10: =E10*330*0.15 -> 0 | L10: =E10*330*0.35 -> 0 | M10: =E10*330*0.5 -> 0
A12: * 노란색 셀만 입력 * 지원기준 : 330천원/ha - 산출기초(1ha기준) : 55,000원/병×3병×2회 * 반드시 읍면에서 전체 검토 후, 적정 농가 및 사업기준에 적합하도록 기재

Sheet 화훼경쟁력제고
A1: 2027년도 과수화훼분야 도비지원사업 수요조사 결과
A2: □ 사업명 : 화훼생산시설 경쟁력제고 지원사업
N3: (단위:천원)
A4: 읍면명 | B4: 신청자 | D4: 주요작목 | E4: 재배면적 (㎡) | F4: 사업신청 | J4: 사 업 비 | N4: 비고
B5: 성명 | C5: 거주지 | F5: 세부사업명 | G5: 단가 (천원) | H5: 사업량 | I5: 단위 | J5: 계 (100%) | K5: 도비 (15%) | L5: 시군비 (35%) | M5: 자부담 (50%)
A6: 총계 | B6: =COUNTA(B7:B300)&"개소" -> 3개소 | H6: =SUM(I6:K6) -> 0 | J6: =SUM(K6:M6) -> 0 | K6: =SUM(K7:K12) -> 0 | L6: =SUM(L7:L12) -> 0 | M6: =SUM(M7:M12) -> 0
B7: 홍길동 | C7: ㅇㅇ시 ㅇㅇ면 ㅇㅇ리 | F7: 양액재배시설 | I7: ㎡ | J7: 0 | K7: =G7*H7*0.15 -> 0 | L7: =G7*H7*0.35 -> 0 | M7: =G7*H7*0.5 -> 0
B8: 김길동 | C8: ㅇㅇ시 ㅇㅇ면 ㅇㅇ리 | F8: 다겹보온커튼 (수평권취식) | I8: ㎡ | J8: 0 | K8: =G8*H8*0.15 -> 0 | L8: =G8*H8*0.35 -> 0 | M8: =G8*H8*0.5 -> 0
B9: 박길동 | C9: ㅇㅇ시 ㅇㅇ면 ㅇㅇ리 | F9: 보광시설 | I9: ㎡ | J9: 0 | K9: =G9*H9*0.15 -> 0 | L9: =G9*H9*0.35 -> 0 | M9: =G9*H9*0.5 -> 0
J10: 0 | K10: =G10*H10*0.15 -> 0 | L10: =G10*H10*0.35 -> 0 | M10: =G10*H10*0.5 -> 0
J11: 0 | K11: =G11*H11*0.15 -> 0 | L11: =G11*H11*0.35 -> 0 | M11: =G11*H11*0.5 -> 0
A13: * 노란색 셀만 입력 * 반드시 읍면에서 전체 검토 후, 적정 농가 및 사업기준에 적합하도록 기재 * 사업단가는 FTA기금과수고품질생산시설현대화사업 세부사업단가 준용 또는 객관적 단가제시 * 지원한도 : 40백만원/개소당

Sheet 화훼직거래활성화 지원 (hidden)
A1: 2024년도 과수화훼분야 도비지원사업 수요조사 결과 보고
A2: □ 사업명 : 화훼직거래활성화 지원
N3: (단위:천원)
A4: 시군명 | B4: 신청자 | D4: 주요작목 | E4: 재배면적 (㎡) | F4: 사업신청 | J4: 사 업 비 | N4: 비고
B5: 성명 | C5: 거주지 | F5: 세부사업 | G5: 단가 (천원) | H5: 사업량 | I5: 단위 | J5: 계 (100%) | K5: 도비 (15%) | L5: 시군비 (35%) | M5: 자부담 (50%)
A6: 총계 | H6: =COUNT(H7:H11) -> 0 | I6: 개소 | J6: =SUM(K6:M6) -> 0 | K6: =SUM(K7:K12) -> 0 | L6: =SUM(L7:L12) -> 0 | M6: =SUM(M7:M12) -> 0
B7: 홍길동 | C7: ㅇㅇ시 ㅇㅇ면 ㅇㅇ리 | F7: 운송비(택배비) | I7: 건 | J7: =SUM(K7:M7) -> 0 | K7: =G7*H7*0.15 -> 0 | L7: =G7*H7*0.35 -> 0 | M7: =G7*H7*0.5 -> 0
B8: 김길동 | C8: ㅇㅇ시 ㅇㅇ면 ㅇㅇ리 | F8: 택배상자(인쇄용) | I8: 개 | J8: =SUM(K8:M8) -> 0 | K8: =G8*H8*0.15 -> 0 | L8: =G8*H8*0.35 -> 0 | M8: =G8*H8*0.5 -> 0
B9: 박길동 | C9: ㅇㅇ시 ㅇㅇ면 ㅇㅇ리 | F9: 홍보물(리플릿) | I9: 매 | J9: =SUM(K9:M9) -> 0 | K9: =G9*H9*0.15 -> 0 | L9: =G9*H9*0.35 -> 0 | M9: =G9*H9*0.5 -> 0
J10: =SUM(K10:M10) -> 0 | K10: =G10*H10*0.15 -> 0 | L10: =G10*H10*0.35 -> 0 | M10: =G10*H10*0.5 -> 0
A13: * 반드시 시군(읍면동)에서 전체 검토 후, 적정 농가 및 사업기준에 적합하도록 기재 * 직거래(개인간 또는 직판장, 꽃집 등) 용도가 아닌 화훼공판장 등 출하 목적의 경우 지원 불가 * 지원한도 : 5백만원/개소당
A14: * 노란색 셀만 입력

Sheet 신규사업
A1: 2027년 과수화훼분야 도비지원사업 수요조사 결과
A2: □ 사업명 : 신규사업명
A3: 시군명 | B3: 세부사업명 | C3: 사업신청 | F3: 사 업 비(천원) | J3: 비고
C4: 사업량 | D4: 단위 | E4: 지원단가 (천원) | F4: 계 (100%) | G4: 도비 (15%) | H4: 시군비 (35%) | I4: 자부담 (50%)
A5: 계 | C5: =SUM(C6:C9) -> 0 | F5: =SUM(G5:I5) -> 0 | G5: =SUM(G6:G9) -> 0 | H5: =SUM(H6:H9) -> 0 | I5: =SUM(I6:I9) -> 0
F6: =SUM(G6:I6) -> 0 | G6: =C6*E6*0.15 -> 0 | H6: =C6*E6*0.35 -> 0 | I6: =C6*E6*0.5 -> 0
F7: =SUM(G7:I7) -> 0 | G7: =C7*E7*0.15 -> 0 | H7: =C7*E7*0.35 -> 0 | I7: =C7*E7*0.5 -> 0
F8: =SUM(G8:I8) -> 0 | G8: =C8*E8*0.15 -> 0 | H8: =C8*E8*0.35 -> 0 | I8: =C8*E8*0.5 -> 0
F9: =SUM(G9:I9) -> 0 | G9: =C9*E9*0.15 -> 0 | H9: =C9*E9*0.35 -> 0 | I9: =C9*E9*0.5 -> 0
A11: ※ 신규사업의 경우 붙임(한글파일) 서식도 작성하여 제출
